bitfinex/quotes_SOLUSD_20250822
["timestamp","ask_amount","ask_price","bid_price","bid_amount"]
[1755866866016,26.0,179.63,179.58,46.58]
[1755866866319,0.67,179.65,179.59,0.69]
[1755866866522,13.59559401,179.67,179.59,12.98939633]
[1755866866713,13.59559401,179.67,179.58,46.58]
[1755866866714,12.29939633,179.6,179.58,46.58]
[1755866867037,12.29939633,179.59,179.53,0.69]
[1755866867241,38.96939633,179.64,179.54,46.64]
[1755866867405,12.29939633,179.59,179.55,0.67]
[1755866867608,26.0,179.62,179.55,0.67]
[1755866867910,26.0,179.62,179.54,46.64]
[1755866867911,12.29939633,179.62,179.56,0.67]
[1755866868119,12.29939633,179.57,179.53,0.67]
[1755866868324,12.29939633,179.56,179.53,47.33]
[1755866868529,12.29939633,179.56,179.53,46.66]
[1755866868738,12.29939633,179.56,179.53,47.33]
[1755866869123,12.29939633,179.56,179.54,0.67]
[1755866869441,12.29939633,179.55,179.53,46.66]
[1755866869621,12.29939633,179.54,179.53,46.66]
[1755866869940,26.0,179.58,179.53,47.33]
[1755866870239,26.0,179.58,179.49,47.45]
[1755866870240,12.29939633,179.54,179.49,47.45]
[1755866870542,0.67,179.57,179.49,47.45]
[1755866870543,12.29939633,179.52,179.49,47.45]
[1755866870717,0.67,179.57,179.49,47.45]
[1755866870718,12.29939633,179.53,179.5,0.67]
[1755866870913,12.29939633,179.53,179.49,46.78]
[1755866870914,26.0,179.59,179.49,46.78]
[1755866871221,26.0,179.57,179.51,0.67]
[1755866871426,26.0,179.57,179.49,46.78]
[1755866871630,12.29939633,179.51,179.49,46.78]
[1755866871818,26.0,179.57,179.49,47.45]
[1755866871819,0.67,179.56,179.49,47.45]
[1755866872030,12.29939633,179.51,179.49,47.45]
[1755866872231,0.67,179.56,179.49,46.78]
[1755866872434,12.29939633,179.52,179.5,0.67]
[1755866872943,12.29939633,179.52,179.49,46.78]
[1755866873115,13.59559401,179.56,179.49,46.78]
[1755866873318,26.0,179.57,179.49,46.78]
[1755866873524,26.0,179.57,179.5,12.96939633]
[1755866873737,0.06,179.6,179.52,12.29939633]
[1755866873920,12.29939633,179.54,179.49,59.07939633]
[1755866874118,0.67,179.59,179.5,0.67]
[1755866874322,26.06,179.6,179.51,12.29939633]
[1755866874621,12.29939633,179.57,179.52,12.96939633]
[1755866874835,12.29939633,179.56,179.53,0.67]
[1755866875049,12.29939633,179.55,179.54,46.82]
[1755866875210,12.29939633,179.56,179.54,46.82]
[1755866875414,12.29939633,179.57,179.54,47.49]
[1755866875624,26.06,179.6,179.54,47.49]
[1755866875844,12.29939633,179.56,179.54,46.82]
[1755866876632,12.29939633,179.55,179.54,46.82]
[1755866877217,26.0,179.59,179.54,47.49]
[1755866877525,12.29939633,179.55,179.54,46.82]
[1755866878330,26.0,179.59,179.54,47.49]
[1755866878534,12.29939633,179.56,179.54,46.82]
[1755866878731,26.67,179.59,179.54,46.82]
[1755866879047,12.29939633,179.55,179.54,46.82]
[1755866879947,26.0,179.59,179.54,46.82]
[1755866880119,12.29939633,179.57,179.54,46.82]
[1755866880318,26.0,179.59,179.54,46.82]
[1755866880543,3.71683205,179.58,179.54,46.82]
[1755866880726,3.71683205,179.58,179.55,0.67]
[1755866880927,12.29939633,179.56,179.54,46.82]
[1755866881534,32.23829456,179.59,179.54,46.82]
[1755866881734,12.29939633,179.55,179.54,46.82]
[1755866881938,16.01607381,179.55,179.54,46.82]
[1755866882147,16.68607381,179.55,179.5,46.73]
[1755866882327,12.29939633,179.51,179.5,0.03]
[1755866883961,18.19930617,179.59,179.5,12.99939633]
[1755866884129,12.29939633,179.56,179.51,12.29939633]
[1755866884331,0.73,179.6,179.54,12.29939633]
[1755866884332,12.29939633,179.59,179.54,12.29939633]
[1755866884661,0.06,179.6,179.55,0.67]
[1755866884829,0.67,179.59,179.54,46.7]
[1755866885022,4.39115093,179.59,179.54,46.7]
[1755866885243,12.29939633,179.55,179.54,46.7]
[1755866885662,12.29939633,179.55,179.5,0.03]
[1755866885871,12.29939633,179.53,179.5,0.7]
[1755866886470,0.67,179.56,179.5,0.03]
[1755866886773,12.29939633,179.52,179.5,0.03]
[1755866886969,39.65559401,179.6,179.5,0.03]
[1755866886970,26.06,179.6,179.54,0.03]
[1755866887152,26.0,179.56,179.54,0.03]
[1755866887353,12.29939633,179.55,179.54,0.03]
[1755866887656,12.96939633,179.55,179.54,0.03]
[1755866888160,12.29939633,179.55,179.54,0.03]
[1755866888351,0.06,179.57,179.54,0.03]
[1755866888753,12.29939633,179.55,179.54,0.03]
[1755866888989,12.96939633,179.55,179.54,0.03]
[1755866889142,16.70153315,179.55,179.54,0.03]
[1755866889346,12.96939633,179.55,179.54,0.03]
[1755866889557,16.70151379,179.55,179.54,0.03]
[1755866890342,4.40211746,179.55,179.54,0.03]
[1755866890543,12.96939633,179.55,179.54,0.03]
[1755866890775,16.70151379,179.55,179.54,0.03]
[1755866891578,35.86658705,179.55,179.54,0.03]
[1755866892069,30.2971078,179.55,179.54,0.03]
[1755866892273,56.2971078,179.55,179.54,0.03]
[1755866893097,62.15091019,179.55,179.54,0.03]
[1755866893673,61.86658705,179.55,179.54,0.03]
[1755866893983,43.32771147,179.55,179.54,0.03]
[1755866894319,62.15091019,179.55,179.54,0.03]
[1755866895470,49.85151386,179.55,179.54,0.03]
[1755866895672,56.2971078,179.55,179.54,0.03]
[1755866896208,61.86658705,179.55,179.54,0.03]
[1755866896704,132.37,179.52,179.5,0.03]
[1755866896866,144.66939633,179.51,179.5,0.03]
[1755866897884,132.37,179.51,179.5,0.7]
[1755866898082,132.37,179.51,179.5,0.03]
[1755866898287,144.66939633,179.51,179.5,0.03]
[1755866898573,26.0,179.55,179.5,0.7]
[1755866898875,26.0,179.55,179.5,0.03]
[1755866898876,12.29939633,179.51,179.5,0.03]
[1755866899519,18.57011662,179.51,179.5,0.03]
[1755866899810,8.12301277,179.51,179.5,0.03]
[1755866900106,20.4224091,179.51,179.5,0.03]
[1755866901575,8.12301277,179.51,179.5,0.03]
[1755866901774,3.73422982,179.51,179.5,0.03]
[1755866902093,16.03362615,179.51,179.5,0.03]
[1755866902688,3.73422982,179.51,179.5,0.7]
[1755866903075,16.03362615,179.52,179.5,0.03]
[1755866903395,3.73422982,179.51,179.5,0.03]
[1755866903597,3.73422982,179.51,179.5,0.7]
[1755866903787,3.73422982,179.52,179.5,0.7]
[1755866903987,3.73422982,179.53,179.5,0.7]
[1755866904186,3.73422982,179.54,179.51,0.67]
[1755866904388,16.03362615,179.54,179.51,0.67]
[1755866904593,12.29939633,179.54,179.5,0.03]
[1755866904897,12.29939633,179.54,179.51,0.67]
[1755866905111,0.03,179.56,179.5,12.32939633]
[1755866905312,0.03,179.56,179.55,12.29939633]
[1755866905693,0.03,179.56,179.55,12.96939633]
[1755866905891,0.03,179.56,179.5,6.119486]
[1755866905892,0.03,179.56,179.52,0.67]
[1755866906120,0.03,179.56,179.52,59.36939633]
[1755866906279,0.03,179.56,179.5,0.03]
[1755866906280,26.0,179.51,179.5,0.03]
[1755866906599,56.6181169,179.51,179.5,0.03]
[1755866906812,17.33439743,179.51,179.5,0.03]
[1755866907020,3.73936608,179.51,179.5,12.32939633]
[1755866907206,0.03,179.56,179.5,12.99939633]
[1755866907513,3.77047529,179.56,179.52,12.29939633]
[1755866907805,0.03,179.56,179.53,0.67]
[1755866908012,0.03,179.56,179.53,12.96939633]
[1755866908178,0.03,179.56,179.55,12.29939633]
[1755866908378,0.03,179.56,179.5,0.7]
[1755866908900,12.29939633,179.53,179.5,0.03]
[1755866909223,51.89499034,179.51,179.5,0.03]
[1755866909381,57.75003377,179.51,179.5,0.03]
[1755866909578,58.45003377,179.51,179.5,0.03]
[1755866909888,0.7,179.55,179.5,0.03]
[1755866910090,12.29939633,179.53,179.5,0.03]
[1755866910689,25.89499034,179.54,179.5,0.03]
[1755866911012,38.29939633,179.54,179.5,0.03]
[1755866911301,38.29939633,179.54,179.5,0.7]
[1755866911498,26.0,179.54,179.5,0.03]
[1755866911703,12.29939633,179.51,179.5,0.03]
[1755866912005,0.7,179.53,179.5,0.03]
[1755866912197,12.29939633,179.51,179.5,0.03]
[1755866912397,26.17931348,179.51,179.5,0.03]
[1755866912596,26.87931348,179.51,179.5,0.03]
[1755866913286,32.45003377,179.51,179.5,0.03]
[1755866913487,32.45003377,179.51,179.48,0.06]
[1755866913488,13.59559401,179.49,179.48,0.06]
[1755866913687,25.89499034,179.49,179.48,0.06]
[1755866913892,26.87931348,179.49,179.48,0.06]
[1755866914306,30.61500031,179.49,179.48,0.06]
[1755866914790,132.28,179.41,179.37,0.67]
[1755866914995,132.28,179.4,179.37,0.67]
[1755866915400,144.57939633,179.4,179.35,24.9]
[1755866915623,144.57939633,179.4,179.38,0.67]
[1755866915790,132.28,179.4,179.39,0.67]
[1755866916708,132.28,179.4,179.39,12.96939633]
[1755866920229,26.0,179.52,179.46,12.96939633]
[1755866920534,26.0,179.52,179.48,12.29939633]
[1755866920739,26.0,179.52,179.4,12.29939633]
[1755866920899,26.0,179.52,179.49,12.29939633]
[1755866921100,38.29939633,179.52,179.47,12.96939633]
[1755866921300,38.29939633,179.52,179.48,0.67]
[1755866921501,26.0,179.52,179.48,0.67]
[1755866921704,38.29939633,179.52,179.41,5.57366035]
[1755866921930,38.29939633,179.52,179.45,0.67]
[1755866921931,12.29939633,179.5,179.45,0.67]
[1755866922100,12.29939633,179.49,179.45,0.67]
[1755866922513,13.59559401,179.51,179.45,0.67]
[1755866922715,12.29939633,179.49,179.45,0.67]
[1755866922911,13.59559401,179.51,179.45,0.67]
[1755866923181,26.03,179.56,179.46,0.73]
[1755866923445,0.03,179.54,179.51,12.29939633]
[1755866923611,0.03,179.54,179.51,0.67]
[1755866923811,0.03,179.54,179.52,0.67]
[1755866924013,0.03,179.54,179.52,12.96939633]
[1755866924233,0.03,179.54,179.53,0.67]
[1755866924539,0.03,179.54,179.51,12.29939633]
[1755866924706,0.03,179.54,179.5,12.29939633]
[1755866925209,0.03,179.54,179.51,12.96939633]
[1755866925817,0.03,179.54,179.5,12.29939633]
[1755866926133,0.03,179.54,179.51,12.29939633]
[1755866926335,0.03,179.54,179.52,0.67]
[1755866926637,0.03,179.54,179.53,12.29939633]
[1755866926830,0.03,179.54,179.53,0.67]
[1755866927224,0.03,179.54,179.47,52.67189409]
[1755866927420,0.03,179.54,179.53,13.00939633]
[1755866927744,0.03,179.54,179.53,0.71]
[1755866927936,0.03,179.54,179.5,0.71]
[1755866928132,0.03,179.54,179.52,12.29939633]
[1755866928338,0.03,179.54,179.53,12.29939633]
[1755866928829,0.03,179.54,179.51,0.71]
[1755866929015,0.03,179.54,179.53,12.29939633]
[1755866929352,0.03,179.56,179.53,12.29939633]
[1755866929659,0.03,179.56,179.55,12.29939633]
[1755866929826,0.03,179.56,179.55,59.31939633]
[1755866930156,0.03,179.56,179.55,60.02939633]
[1755866930936,0.65,179.69,179.55,60.31371947]
[1755866931244,12.29939633,179.68,179.63,12.29939633]
[1755866931449,12.29939633,179.68,179.63,59.31939633]
[1755866931618,13.59559401,179.69,179.63,60.02939633]
[1755866931821,13.59559401,179.69,179.63,47.02]
[1755866932018,12.29939633,179.68,179.63,59.31939633]
[1755866932353,12.94939633,179.7,179.63,47.73]
[1755866932517,0.65,179.7,179.64,13.00939633]
[1755866932846,0.65,179.73,179.67,12.29939633]
[1755866933174,26.0,179.72,179.67,12.29939633]
[1755866933334,0.65,179.79,179.71,12.29939633]
[1755866933523,12.29939633,179.75,179.71,46.96]
[1755866933729,12.29939633,179.77,179.72,0.71]
[1755866933940,12.29939633,179.74,179.71,46.96]
[1755866934346,0.65,179.76,179.71,46.96]
[1755866934545,12.29939633,179.74,179.71,46.96]
[1755866936060,12.29939633,179.72,179.71,46.96]
[1755866936959,12.94939633,179.72,179.63,12.29939633]
[1755866937127,12.29939633,179.67,179.64,46.86]
[1755866937330,12.29939633,179.68,179.64,46.86]
[1755866937522,26.65,179.71,179.64,59.15939633]
[1755866937756,12.29939633,179.7,179.66,12.29939633]
[1755866937935,12.29939633,179.7,179.66,13.00939633]
[1755866938143,39.59559401,179.73,179.66,13.00939633]
[1755866938336,12.29939633,179.7,179.66,13.00939633]
[1755866938534,39.59559401,179.73,179.66,0.71]
[1755866938739,12.29939633,179.7,179.66,13.00939633]
[1755866938946,39.59559401,179.73,179.66,0.71]
[1755866939143,26.0,179.73,179.67,12.29939633]
[1755866939461,12.29939633,179.72,179.67,12.29939633]
[1755866939760,26.0,179.73,179.68,13.00939633]
[1755866940064,12.29939633,179.72,179.68,0.71]
[1755866940360,12.29939633,179.69,179.64,46.86]
[1755866940537,27.73964983,179.71,179.64,47.57]
[1755866940732,12.29939633,179.67,179.64,47.57]
[1755866940945,12.29939633,179.67,179.58,40.18]
[1755866940946,12.29939633,179.65,179.61,0.71]
[1755866941139,12.29939633,179.65,179.62,46.76]
[1755866941365,13.59559401,179.69,179.62,47.47]
[1755866941671,27.00873136,179.7,179.65,12.29939633]
[1755866941877,12.29939633,179.66,179.62,46.76]
[1755866942076,0.65,179.66,179.62,46.76]
[1755866942262,12.29939633,179.66,179.63,0.71]
[1755866942573,27.06873136,179.7,179.64,0.71]
[1755866942869,12.29939633,179.68,179.64,0.71]
[1755866943460,12.29939633,179.66,179.62,46.76]
[1755866943772,0.65,179.68,179.6,0.71]
[1755866943949,27.06873136,179.7,179.63,13.00939633]
[1755866944145,12.29939633,179.67,179.63,13.00939633]
[1755866944355,27.06873136,179.7,179.64,0.71]
[1755866944568,27.06873136,179.7,179.64,13.00939633]
[1755866944868,27.06873136,179.7,179.65,0.71]
[1755866945071,170.92812769,179.7,179.66,0.71]
[1755866945252,170.92812769,179.7,179.67,47.39]
[1755866945253,158.62873136,179.7,179.67,47.39]
[1755866945465,27.10663478,179.73,179.67,46.68]
[1755866945647,27.10663478,179.73,179.71,1.56e-06]
[1755866946070,27.10663478,179.73,179.67,46.68]
[1755866946273,27.10663478,179.73,179.71,1.56e-06]
[1755866946569,27.10663478,179.73,179.72,1.56e-06]
[1755866946796,27.10663478,179.73,179.72,12.29939633]
[1755866946961,27.10663478,179.73,179.72,1.56e-06]
[1755866947575,12.29939477,179.72,179.71,12.29939633]
[1755866947889,39.41314723,179.72,179.71,5.89e-06]
[1755866948048,39.41314723,179.72,179.71,59.03939633]
[1755866948244,39.41314723,179.72,179.71,5.89e-06]
[1755866948469,39.41314723,179.72,179.68,12.29939633]
[1755866948788,39.41314723,179.72,179.59,17.29649387]
[1755866948789,12.29939633,179.69,179.65,46.74]
[1755866949068,40.09886235,179.7,179.65,59.03939633]
[1755866949383,40.09886235,179.7,179.65,46.74]
[1755866949384,27.79946602,179.7,179.65,46.74]
[1755866949557,12.94939633,179.69,179.66,46.76]
[1755866949752,12.29939633,179.69,179.66,46.76]
[1755866950368,12.29939633,179.68,179.66,46.76]
[1755866950586,12.29939633,179.67,179.62,12.29939633]
[1755866950770,12.29939633,179.65,179.54,10.55697894]
[1755866950984,0.65,179.67,179.59,12.29939633]
[1755866951181,12.29939633,179.66,179.61,12.29939633]
[1755866951400,12.29939633,179.66,179.62,46.72]
[1755866951886,0.65,179.65,179.62,46.7]
[1755866952067,12.29939633,179.63,179.54,0.03]
[1755866952391,14.24559401,179.69,179.58,12.29939633]
[1755866952571,0.65,179.68,179.62,12.29939633]
[1755866952772,27.53389738,179.71,179.64,12.29939633]
[1755866952977,27.79946602,179.7,179.65,12.29939633]
[1755866953179,27.53389738,179.71,179.67,12.29939633]
[1755866953374,27.53389738,179.71,179.68,12.29939633]
[1755866953693,27.53389738,179.71,179.7,1.56e-06]
[1755866953872,27.53389738,179.71,179.68,46.72]
[1755866954081,27.53389738,179.71,179.68,59.01939633]
[1755866954259,40.74886235,179.7,179.67,46.74]
[1755866954606,12.29939633,179.69,179.65,46.72]
[1755866954887,12.29939633,179.66,179.53,50.14]
[1755866955065,12.29939633,179.66,179.61,12.29939633]
[1755866955265,27.53389738,179.71,179.62,46.74]
[1755866955461,27.53389738,179.71,179.69,1.56e-06]
[1755866955764,27.53389738,179.71,179.68,59.03939633]
[1755866956095,27.53389738,179.71,179.69,1.56e-06]
[1755866956474,27.53389738,179.71,179.68,1.56e-06]
[1755866956689,0.06,179.72,179.7,12.29939633]
[1755866956864,0.06,179.72,179.68,1.56e-06]
[1755866957065,0.06,179.72,179.71,12.29939633]
[1755866957785,0.06,179.72,179.67,0.28432314]
[1755866958087,0.06,179.72,179.71,59.03939633]
[1755866958265,0.06,179.72,179.71,46.74]
[1755866958687,12.35939633,179.72,179.63,26.0]
[1755866958882,0.76,179.72,179.66,12.29939633]
[1755866959082,12.29939633,179.7,179.64,46.72]
[1755866959279,12.29939633,179.69,179.63,12.299396]
[1755866959479,0.76,179.72,179.64,46.72]
[1755866959785,0.7,179.7,179.63,46.74]
[1755866959995,12.29939633,179.69,179.64,12.29939633]
[1755866960165,12.29939633,179.69,179.63,46.74]
[1755866960371,12.29939633,179.68,179.63,59.03939633]
[1755866960567,0.06,179.72,179.66,12.29939633]
[1755866960768,0.06,179.72,179.68,12.29939633]
[1755866960991,0.06,179.72,179.64,29.34371947]
[1755866961291,0.06,179.72,179.71,12.29939633]
[1755866961496,0.06,179.72,179.7,59.03939633]
[1755866961666,0.06,179.72,179.7,46.74]
[1755866961870,0.06,179.72,179.7,59.03939633]
[1755866962094,0.06,179.72,179.71,12.29939633]
[1755866962481,0.06,179.72,179.7,46.74]
[1755866962892,0.06,179.72,179.7,59.03939633]
[1755866963203,0.06,179.72,179.71,12.29939633]
[1755866964501,0.06,179.72,179.7,46.74]
[1755866964680,0.06,179.72,179.71,12.29939633]
[1755866965278,0.06,179.72,179.7,46.74]
[1755866965676,0.06,179.72,179.67,26.0]
[1755866965993,0.06,179.72,179.71,12.29939633]
[1755866966195,0.06,179.72,179.68,26.0]
[1755866966405,0.06,179.72,179.7,12.29939633]
[1755866966700,0.76,179.72,179.69,58.91939633]
[1755866966921,0.06,179.72,179.71,12.29939633]
[1755866967678,0.06,179.72,179.69,46.62]
[1755866967901,0.06,179.72,179.71,12.29939633]
[1755866968616,0.06,179.72,179.71,46.6]
[1755866968779,0.06,179.72,179.71,58.89939633]
[1755866970733,0.06,179.72,179.68,26.03]
[1755866970887,0.06,179.72,179.71,58.93939633]
[1755866972804,0.06,179.72,179.71,12.29939633]
[1755866973000,0.76,179.72,179.68,0.03]
[1755866973331,0.7,179.71,179.69,30.54]
[1755866973702,0.7,179.7,179.69,30.54]
[1755866974336,0.06,179.72,179.69,46.52]
[1755866974506,13.05939633,179.72,179.69,46.52]
[1755866975116,0.7,179.71,179.69,46.52]
[1755866975924,0.06,179.72,179.69,46.52]
[1755866976305,0.06,179.72,179.71,12.29939633]
[1755866976620,0.06,179.72,179.69,58.81939633]
[1755866976819,0.06,179.72,179.71,12.29939633]
[1755866977126,0.06,179.72,179.69,46.52]
[1755866977422,0.06,179.72,179.71,12.29939633]
[1755866977821,0.06,179.72,179.71,17.31645206]
[1755866978023,0.06,179.72,179.71,38.58371947]
[1755866978411,0.06,179.72,179.71,48.58371947]
[1755866979338,0.06,179.72,179.71,26.28432314]
[1755866979553,0.06,179.72,179.71,48.58371947]
[1755866979742,0.06,179.72,179.71,36.28432314]
[1755866979942,0.06,179.72,179.71,38.58371947]
[1755866980244,0.06,179.72,179.71,48.58371947]
[1755866980469,10.0,179.95,179.71,48.58371947]
[1755866980470,6.25653331,179.97,179.8,26.0]
[1755866980758,12.29939633,179.86,179.81,46.66]
[1755866981051,0.7,179.85,179.81,46.66]
[1755866981219,26.0,179.93,179.81,58.95939633]
[1755866981421,13.59559401,179.91,179.81,46.66]
[1755866981619,12.29939633,179.86,179.81,58.95939633]
[1755866981818,0.7,179.85,179.81,46.66]
[1755866982445,12.29939633,179.82,179.81,46.66]
[1755866982622,12.99939633,179.82,179.81,45.94]
[1755866982821,0.7,179.82,179.78,46.76]
[1755866983041,12.29939633,179.81,179.78,46.76]
[1755866983229,0.7,179.81,179.78,46.76]
[1755866984027,0.7,179.81,179.78,59.05939633]
[1755866984345,0.7,179.84,179.78,59.05939633]
[1755866984639,12.29939633,179.82,179.78,46.76]
[1755866984848,12.99939633,179.81,179.78,46.76]
[1755866985045,12.29939633,179.8,179.78,46.76]
[1755866985227,12.99939633,179.8,179.78,46.76]
[1755866985423,0.7,179.8,179.78,46.76]
[1755866985624,13.59559401,179.88,179.78,46.76]
[1755866985832,12.29939633,179.85,179.81,12.29939633]
[1755866986042,12.29939633,179.83,179.82,46.96]
[1755866986243,13.05939633,179.83,179.81,46.96]
[1755866986542,0.06,179.83,179.81,46.96]
[1755866986749,0.06,179.83,179.81,59.25939633]
[1755866987149,0.69,179.82,179.81,46.96]
[1755866987472,0.06,179.83,179.81,46.96]
[1755866989352,0.06,179.83,179.82,12.99939633]
[1755866989985,0.06,179.83,179.82,0.7]
[1755866990179,0.06,179.83,179.82,12.99939633]
[1755866991569,0.06,179.83,179.81,46.96]
[1755866992139,0.06,179.83,179.81,59.25939633]
[1755866992741,0.06,179.83,179.82,12.29939633]
[1755866993152,0.06,179.83,179.82,12.99939633]
[1755866993668,0.06,179.83,179.82,12.29939633]
[1755866994069,0.06,179.83,179.81,46.96]
[1755866994249,0.06,179.83,179.82,12.29939633]
[1755866994569,0.06,179.83,179.81,46.96]
[1755866994770,0.06,179.83,179.82,12.29939633]
[1755866994966,0.06,179.83,179.81,46.96]
[1755866995171,0.06,179.83,179.82,46.84]
[1755866995881,0.75,179.83,179.82,46.84]
[1755866996252,0.06,179.83,179.82,46.84]
[1755866996677,0.75,179.83,179.82,46.84]
[1755866996885,0.06,179.83,179.82,46.84]
[1755867000781,12.35939633,179.83,179.82,46.84]
[1755867001076,0.06,179.83,179.82,46.84]
[1755867003481,0.06,179.83,179.79,31.56204114]
[1755867003482,13.04939633,179.83,179.79,0.03]
[1755867003682,12.29939633,179.8,179.79,46.79]
[1755867003979,12.98939633,179.8,179.79,0.03]
[1755867004362,12.98939633,179.8,179.77,0.03]
[1755867004563,0.06,179.83,179.77,0.03]
[1755867004564,0.69,179.79,179.77,0.03]
[1755867004765,12.29939633,179.78,179.77,0.03]
[1755867004991,12.29939633,179.78,179.72,46.7]
[1755867005176,12.29939633,179.73,179.72,46.7]
[1755867005364,12.98939633,179.73,179.7,0.03]
[1755867005567,12.29939633,179.71,179.7,0.03]
[1755867006184,12.98939633,179.71,179.7,0.03]
[1755867007988,26.58499034,179.71,179.69,0.03]
[1755867008155,13.59559401,179.69,179.66,0.03]
[1755867008359,13.59559401,179.66,179.56,0.14]
[1755867008559,24.59879266,179.64,179.56,0.14]
[1755867008772,13.59559401,179.63,179.55,2.231832]
[1755867008986,0.69,179.62,179.55,2.231832]
[1755867009284,12.29939633,179.57,179.54,0.03]
[1755867009888,12.29939633,179.55,179.54,0.03]
[1755867010385,12.98939633,179.55,179.54,0.03]
[1755867012181,26.58499034,179.55,179.54,0.03]
[1755867012905,26.86931348,179.55,179.54,0.03]
[1755867013071,13.59559401,179.52,179.43,2.90672521]
[1755867013271,13.59559401,179.52,179.42,0.06]
[1755867013272,12.29939633,179.47,179.42,0.06]
[1755867013765,13.59559401,179.49,179.42,0.06]
[1755867013766,0.69,179.49,179.42,0.06]
[1755867013977,12.29939633,179.47,179.42,0.06]
[1755867014490,12.98939633,179.47,179.42,0.06]
[1755867014682,0.69,179.47,179.42,0.06]
[1755867014866,12.98939633,179.47,179.42,0.06]
[1755867015064,0.69,179.47,179.42,0.06]
[1755867015288,12.29939633,179.47,179.42,0.06]
[1755867015591,12.98939633,179.47,179.42,0.06]
[1755867015799,0.69,179.47,179.42,0.06]
[1755867016093,12.98939633,179.47,179.42,0.06]
[1755867017070,0.69,179.47,179.42,0.06]
[1755867017403,12.98939633,179.47,179.42,0.06]
[1755867017699,25.89499034,179.43,179.42,0.06]
[1755867017891,12.29939633,179.43,179.42,0.06]
[1755867018204,12.95939633,179.43,179.42,0.06]
[1755867018370,0.66,179.43,179.42,0.06]
[1755867018572,12.95939633,179.43,179.42,0.06]
[1755867019309,0.66,179.43,179.42,0.06]
[1755867019481,13.59559401,179.46,179.42,0.06]
[1755867019680,0.66,179.47,179.42,0.06]
[1755867019880,12.29939633,179.43,179.42,0.06]
[1755867020391,0.66,179.43,179.42,0.06]
[1755867020706,72.98216157,179.49,179.42,0.06]
[1755867020707,0.66,179.47,179.42,0.06]
[1755867020885,12.29939633,179.43,179.42,0.06]
[1755867021201,13.59559401,179.45,179.42,0.06]
[1755867021598,0.66,179.44,179.42,0.06]
[1755867021773,12.29939633,179.43,179.42,0.06]
[1755867021973,26.55499034,179.43,179.42,0.06]
[1755867022195,13.59559401,179.43,179.42,0.06]
[1755867022374,25.89499034,179.43,179.42,0.06]
[1755867022800,26.0,179.5,179.42,0.06]
[1755867022982,12.29939633,179.44,179.42,0.06]
[1755867023172,12.29939633,179.43,179.42,0.06]
[1755867023373,13.59559401,179.46,179.42,0.06]
[1755867023600,12.29939633,179.45,179.42,0.06]
[1755867024204,12.29939633,179.44,179.42,0.06]
[1755867024390,13.59559401,179.47,179.42,0.06]
[1755867024597,12.29939633,179.43,179.42,0.06]
[1755867024793,12.29939633,179.45,179.42,0.06]
[1755867024986,12.29939633,179.43,179.42,0.06]
[1755867025191,0.66,179.44,179.42,0.06]
[1755867025417,12.29939633,179.43,179.42,0.06]
[1755867025590,12.95939633,179.43,179.42,0.06]
[1755867025790,26.55499034,179.43,179.42,0.06]
[1755867025989,13.59559401,179.42,179.38,0.1]
[1755867026207,12.29939633,179.39,179.38,0.1]
[1755867026697,12.29939633,179.4,179.38,0.1]
[1755867026893,12.29939633,179.41,179.38,0.1]